bitfinex-derivatives/quotes_SOLF0:USTF0_20250425
["timestamp","ask_amount","ask_price","bid_price","bid_amount"]
[1745613571762,27.94,152.15,152.04,26.26162389]
[1745613571965,54.20162389,152.15,152.04,26.26162389]
[1745613572165,27.94,152.15,152.04,26.26162389]
[1745613572366,27.94,152.15,152.05,27.94]
[1745613572568,27.94,152.18,152.09,26.26162389]
[1745613573268,34.5061,152.18,152.09,26.26162389]
[1745613573472,26.26162389,152.16,152.04,26.26162389]
[1745613574369,124.0,152.17,152.04,26.26162389]
[1745613574571,6.593,152.31,152.04,436.88837503]
[1745613574873,26.26162389,152.27,152.15,26.26162389]
[1745613575074,26.26162389,152.24,152.11,27.92]
[1745613575270,6.5656,152.19,152.1,26.26162389]
[1745613575467,27.9,152.18,152.1,26.26162389]
[1745613575680,34.4658,152.18,152.04,26.26162389]
[1745613575874,27.9,152.18,152.08,26.26162389]
[1745613576269,27.9,152.18,152.11,26.26162389]
[1745613576677,473.7,152.21,152.11,26.26162389]
[1745613576877,31.5975,152.33,152.2,26.26162389]
[1745613577078,31.5975,152.33,152.23,26.26162389]
[1745613577079,27.9,152.32,152.23,26.26162389]
[1745613577272,34.4598,152.32,152.23,26.26162389]
[1745613577578,27.9,152.35,152.22,26.26162389]
[1745613577778,0.34454,152.28,152.22,26.26162389]
[1745613578377,0.34454,152.28,152.25,26.26162389]
[1745613579180,0.34454,152.28,152.19,27.9]
[1745613579477,0.34454,152.28,152.24,26.26162389]
[1745613579880,28.22454,152.28,152.13,7.9159]
[1745613580180,26.26162389,152.26,152.11,27.88]
[1745613580483,6.5625,152.26,152.11,27.88]
[1745613580683,6.5625,152.26,152.16,26.26162389]
[1745613580984,3.9562,152.27,152.16,26.26162389]
[1745613581475,3.9562,152.27,152.15,26.07919757]
[1745613581680,6.5633,152.24,152.15,26.07919757]
[1745613581880,27.86,152.23,152.15,26.07919757]
[1745613582085,6.5641,152.22,152.15,26.07919757]
[1745613582387,6.5641,152.22,152.13,42.38743946]
[1745613582788,27.86,152.23,152.13,42.38743946]
[1745613583185,3.7395,152.22,152.11,27.88]
[1745613583386,6.5655,152.19,152.11,27.88]
[1745613583690,27.86,152.18,152.11,27.88]
[1745613583888,27.86,152.18,152.1,42.38743946]
[1745613584288,27.86,152.18,152.07,42.38743946]
[1745613584585,27.86,152.18,152.1,42.38743946]
[1745613586192,6.5666,152.16,152.1,42.38743946]
[1745613586487,27.86,152.18,152.07,42.38743946]
[1745613587594,70.24743946,152.18,152.07,42.38743946]
[1745613587792,70.24743946,152.18,152.04,42.38743946]
[1745613588293,7.9234,152.17,152.04,42.38743946]
[1745613588494,6.5687,152.12,152.04,42.38743946]
[1745613588692,28.02,152.11,152.04,42.38743946]
[1745613588895,28.02,152.11,152.01,42.38743946]
[1745613589094,28.02,152.11,152.0,28.02]
[1745613589993,6.5709,152.06,151.98,515.56743946]
[1745613590294,28.02,152.07,151.98,42.38743946]
[1745613591092,34.5906,152.07,151.98,42.38743946]
[1745613592097,6.5711,152.06,151.98,42.38743946]
[1745613592293,28.02,152.07,151.98,42.38743946]
[1745613593195,6.5717,152.05,151.98,42.38743946]
[1745613593397,28.02,152.07,151.98,42.38743946]
[1745613594799,28.04,152.1,151.98,42.38743946]
[1745613595597,6.5708,152.07,151.98,42.38743946]
[1745613595896,70.42743946,152.06,151.92,42.38743946]
[1745613596199,6.5736,152.0,151.92,42.38743946]
[1745613596393,34.6136,152.0,151.92,42.38743946]
[1745613596592,28.04,152.0,151.92,42.38743946]
[1745613596895,6.5742,151.99,151.92,42.38743946]
[1745613597097,28.04,152.0,151.92,42.38743946]
[1745613599099,34.6136,152.0,151.96,6.5749]
[1745613599302,28.04,152.0,151.92,42.38743946]
[1745613599602,34.6136,152.0,151.96,6.5749]
[1745613600001,28.04,152.0,151.92,42.38743946]
[1745613600201,34.6137,152.0,151.96,6.575]
[1745613600398,28.04,152.0,151.92,42.38743946]
[1745613600603,28.04,152.0,151.87,28.1881]
[1745613600810,70.42743946,152.0,151.87,28.1881]
[1745613601204,70.42743946,152.0,151.87,28.04]
[1745613601399,70.42743946,152.0,151.9,6.5775]
[1745613601804,6.5765,151.94,151.9,6.5775]
[1745613602001,28.04,151.94,151.86,46.16093946]
[1745613602307,28.04,151.94,151.85,3.9228]
[1745613602507,28.04,151.94,151.87,6.579]
[1745613602706,28.04,151.94,151.81,31.9616]
[1745613602909,28.04,151.94,151.86,6.5795]
[1745613603105,28.04,151.94,151.83,42.38743946]
[1745613603407,28.04,151.94,151.84,42.54934874]
[1745613603609,6.5773,151.92,151.84,42.54934874]
[1745613603909,70.58934874,151.94,151.82,42.54934874]
[1745613604104,6.5781,151.9,151.82,42.54934874]
[1745613604304,28.04,151.89,151.82,26.19125257]
[1745613605003,34.6186,151.89,151.82,26.19125257]
[1745613605201,28.04,151.89,151.82,26.19125257]
[1745613605505,34.6185,151.89,151.82,26.19125257]
[1745613605706,28.04,151.89,151.82,26.19125257]
[1745613606005,28.04,151.89,151.86,6.5793]
[1745613606206,28.04,151.89,151.82,26.19125257]
[1745613606408,28.04,151.89,151.86,6.5794]
[1745613606809,28.04,151.89,151.87,6.5791]
[1745613607507,28.04,151.89,151.81,31.9616]
[1745613608010,28.04,151.89,151.86,6.5794]
[1745613608308,28.04,151.89,151.81,31.9616]
[1745613608507,28.04,151.89,151.84,26.19125257]
[1745613608710,28.06,151.92,151.84,26.19125257]
[1745613609002,28.06,151.92,151.87,26.19125257]
[1745613609208,4.1547,151.96,151.85,28.06]
[1745613609408,28.06,151.95,151.85,28.06]
[1745613609708,6.5763,151.94,151.89,6.5779]
[1745613610410,6.5763,151.94,151.9,6.5778]
[1745613611010,6.5763,151.94,151.89,6.5781]
[1745613611211,6.5766,151.93,151.89,6.5781]
[1745613611707,28.06,151.95,151.88,6.5786]
[1745613611907,28.06,151.95,151.82,28.06]
[1745613611908,26.19125257,151.93,151.82,28.06]
[1745613612506,6.5782,151.9,151.85,6.5799]
[1745613612706,28.06,151.89,151.82,28.06]
[1745613612909,28.06,151.89,151.81,3.7735]
[1745613614611,28.06,151.89,151.87,6.5789]
[1745613615113,28.06,151.89,151.83,26.19125257]
[1745613615616,28.06,151.92,151.86,26.19125257]
[1745613615914,28.06,151.93,151.86,26.19125257]
[1745613616917,28.06,151.93,151.92,6.5769]
[1745613617416,31.2547,151.96,151.89,26.19125257]
[1745613617817,31.2547,151.96,151.95,6.5757]
[1745613618219,31.2547,151.96,151.86,26.19125257]
[1745613618414,37.8301,151.96,151.93,6.5765]
[1745613618614,31.2547,151.96,151.86,26.19125257]
[1745613619217,31.2547,151.96,151.87,27.1]
[1745613619417,31.2547,151.96,151.9,26.19125257]
[1745613619718,31.2547,151.96,151.95,6.5757]
[1745613620017,27.1,151.97,151.9,26.19125257]
[1745613620914,27.1,151.97,151.96,6.5749]
[1745613621418,27.1,151.97,151.93,6.5764]
[1745613621618,27.1,151.97,151.9,26.19125257]
[1745613624227,27.1,151.97,151.92,6.5767]
[1745613624529,27.1,151.97,151.87,27.1]
[1745613624725,6.5763,151.94,151.89,6.578]
[1745613625328,27.1,151.93,151.89,6.578]
[1745613625828,27.1,151.93,151.86,26.19125257]
[1745613626426,6.5774,151.91,151.86,26.19125257]
[1745613627028,6.5772,151.92,151.87,6.5789]
[1745613627230,6.5772,151.92,151.86,26.19125257]
[1745613627830,6.5774,151.91,151.88,6.5784]
[1745613628130,6.5774,151.91,151.86,26.19125257]
[1745613628429,6.5774,151.91,151.87,6.5788]
[1745613628630,6.5774,151.91,151.86,26.19125257]
[1745613629125,27.1,151.93,151.86,26.19125257]
[1745613629632,6.5774,151.91,151.89,6.5783]
[1745613629820,27.1,151.93,151.86,26.19125257]
[1745613630129,27.1,151.93,151.83,26.19125257]
[1745613630325,6.5782,151.9,151.86,6.5793]
[1745613630531,27.1,151.89,151.81,3.7735]
[1745613630729,6.5798,151.86,151.83,6.5806]
[1745613631422,27.1,151.89,151.83,6.5806]
[1745613631423,6.5793,151.87,151.83,6.5806]
[1745613631729,27.1,151.89,151.8,26.19125257]
[1745613631930,6.5788,151.88,151.8,26.19125257]
[1745613632231,6.5788,151.88,151.84,6.5802]
[1745613632732,27.1,151.89,151.88,6.5787]
[1745613633231,27.1,151.89,151.83,26.19125257]
[1745613633533,27.1,151.89,151.87,6.5789]
[1745613634129,6.5778,151.9,151.87,6.5789]
[1745613634336,27.1,151.89,151.83,26.19125257]
[1745613634534,27.1,151.89,151.81,27.1]
[1745613635433,27.1,151.89,151.88,6.5787]
[1745613636831,27.1,151.89,151.86,6.5793]
[1745613637028,27.1,151.89,151.81,27.1]
[1745613637338,33.6785,151.89,151.81,27.1]
[1745613637538,33.6785,151.89,151.86,6.5793]
[1745613638037,27.1,151.89,151.84,6.5803]
[1745613638535,6.5794,151.87,151.84,6.5803]
[1745613638836,27.1,151.89,151.85,6.58]
[1745613639132,6.5789,151.88,151.85,6.58]
[1745613639346,27.1,151.89,151.74,435.71767775]
[1745613639347,53.29125257,151.89,151.77,26.19125257]
[1745613639535,8.0259,151.87,151.77,26.19125257]
[1745613639732,30.19475257,151.86,151.7,27.2517]
[1745613640035,27.1,151.85,151.73,26.19125257]
[1745613640235,6.5811,151.83,151.79,6.5823]
[1745613640740,6.5813,151.82,151.73,26.19125257]
[1745613640935,27.1,151.81,151.73,26.19125257]
[1745613641337,27.1,151.81,151.78,6.583]
[1745613641536,27.1,151.81,151.69,19.9125]
[1745613641739,27.1,151.81,151.7,26.19125257]
[1745613641939,27.1,151.81,151.73,26.19125257]
[1745613642339,27.1,151.81,151.77,6.5834]
[1745613642744,33.6819,151.81,151.77,6.5834]
[1745613644043,27.1,151.81,151.73,26.19125257]
[1745613644539,473.94,151.83,151.8,6.5822]
[1745613644841,501.06,151.83,151.8,6.5822]
[1745613645043,501.06,151.83,151.81,6.5814]
[1745613645243,501.06,151.83,151.76,26.19125257]
[1745613645744,507.6412,151.83,151.8,6.5821]
[1745613645944,501.06,151.83,151.76,26.19125257]
[1745613646345,501.06,151.83,151.81,6.5815]
[1745613646548,501.06,151.83,151.76,26.19125257]
[1745613646843,501.06,151.83,151.81,6.5815]
[1745613647948,501.06,151.83,151.76,26.19125257]
[1745613648347,501.06,151.83,151.73,26.19125257]
[1745613648649,6.582,151.81,151.78,6.5828]
[1745613649048,501.06,151.83,151.76,6.5836]
[1745613649248,527.25125257,151.83,151.76,6.5836]
[1745613649850,6.5829,151.79,151.76,6.5836]
[1745613650045,26.38,151.78,151.77,6.5835]
[1745613650545,26.38,151.78,151.76,6.5837]
[1745613650847,26.38,151.78,151.71,26.19125257]
[1745613651150,26.38,151.78,151.77,6.5835]
[1745613652350,26.38,151.78,151.71,26.19125257]
[1745613652950,26.38,151.78,151.76,6.5836]
[1745613655851,32.9631,151.78,151.76,6.5836]
[1745613656155,26.38,151.78,151.7,4.042]
[1745613656349,26.38,151.78,151.68,26.19125257]
[1745613656544,7.7826,151.77,151.67,26.19125257]
[1745613656749,11.86,151.77,151.66,26.19125257]
[1745613657251,6.5852,151.74,151.71,6.5857]
[1745613657550,26.4,151.73,151.71,6.5857]
[1745613658953,26.4,151.73,151.66,26.19125257]
[1745613659448,34.1826,151.77,151.76,6.5839]
[1745613659654,30.2672,151.77,151.76,6.5839]
[1745613659949,26.4,151.77,151.68,26.19125257]
[1745613660753,26.4,151.77,151.76,6.5839]
[1745613661253,26.4,151.77,151.68,26.19125257]
[1745613661554,26.4,151.77,151.71,26.19125257]
[1745613662354,26.4,151.77,151.76,6.5839]
[1745613662555,26.4,151.77,151.71,26.19125257]
[1745613662755,26.4,151.77,151.68,26.19125257]
[1745613663354,26.4,151.77,151.71,26.19125257]
[1745613664158,26.4,151.77,151.76,6.5839]
[1745613664858,26.4,151.77,151.72,3.7487]
[1745613665358,26.4,151.77,151.76,6.5839]
[1745613665560,26.4,151.79,151.72,3.7487]
[1745613665759,26.4,151.79,151.74,26.19125257]
[1745613667661,26.4,151.79,151.76,6.5836]
[1745613667961,26.4,151.79,151.72,3.7487]
[1745613668262,6.5833,151.78,151.75,6.5841]
[1745613668561,26.4,151.79,151.72,3.7487]
[1745613668763,26.4,151.79,151.77,6.5832]
[1745613669064,26.4,151.79,151.72,3.7487]
[1745613669563,32.9829,151.79,151.76,6.5836]
[1745613670562,32.9829,151.79,151.77,6.5834]
[1745613670758,26.4,151.79,151.72,3.7487]
[1745613671253,32.9829,151.79,151.72,3.7487]
[1745613671562,26.4,151.79,151.77,6.5835]
[1745613672056,26.4,151.79,151.72,3.7487]
[1745613672263,26.4,151.79,151.78,6.583]
[1745613672656,26.4,151.81,151.79,6.5824]
[1745613674764,32.9818,151.81,151.74,26.19125257]
[1745613674966,26.4,151.81,151.74,26.19125257]
[1745613675464,6.5824,151.8,151.78,6.583]
[1745613675765,26.4,151.81,151.72,3.7487]
[1745613675958,3.8635,151.8,151.72,3.7487]
[1745613676563,10.4459,151.8,151.76,6.5835]
[1745613676863,10.4459,151.8,151.72,3.7487]
[1745613677567,6.5827,151.79,151.72,3.7487]
[1745613678368,6.5827,151.79,151.76,6.5838]
[1745613679668,6.5827,151.79,151.77,6.5835]
[1745613679864,26.4,151.81,151.74,26.19125257]
[1745613680369,26.4,151.81,151.8,6.5822]
[1745613682470,473.94,151.83,151.81,6.5814]
[1745613682775,25.78,151.84,151.77,26.19125257]
[1745613683372,25.78,151.84,151.83,6.5807]
[1745613684773,6.5792,151.87,151.84,6.5801]
[1745613684974,25.78,151.87,151.81,17.46659696]
[1745613685466,25.78,151.87,151.82,17.4635994]
[1745613685671,25.78,151.87,151.85,6.5798]
[1745613687171,25.78,151.87,151.82,6.5813]
[1745613687378,25.78,151.87,151.8,26.19691959]
[1745613688377,6.5799,151.86,151.8,26.19691959]
[1745613688878,25.78,151.87,151.8,26.19691959]
[1745613689676,6.5798,151.86,151.83,6.5806]
[1745613689977,25.78,151.87,151.8,26.19691959]
[1745613690177,32.3593,151.87,151.84,6.5802]
[1745613690579,25.78,151.87,151.8,26.19691959]
[1745613690878,6.5798,151.86,151.83,6.5806]
[1745613691580,32.3593,151.87,151.84,6.5803]
[1745613692176,25.78,151.87,151.77,26.19691959]
[1745613692382,25.78,151.87,151.74,65.14631959]
[1745613692680,6.5809,151.84,151.8,6.5819]
[1745613692880,29.6233,151.83,151.8,6.5819]
[1745613693576,29.6233,151.83,151.81,6.5816]
[1745613693881,29.6233,151.83,151.75,3.8425]
[1745613694583,29.6233,151.83,151.82,6.5813]
[1745613695081,29.6233,151.83,151.81,6.5815]
[1745613695582,29.6233,151.83,151.75,3.8425]
[1745613695781,36.2042,151.83,151.8,6.5819]
[1745613696482,29.6233,151.83,151.81,6.5817]
[1745613697082,25.78,151.83,151.74,65.14631959]
[1745613697281,25.78,151.83,151.78,26.19691959]
[1745613697582,25.78,151.83,151.82,6.5813]
[1745613698783,25.78,151.86,151.81,26.19691959]
[1745613699484,25.78,151.86,151.84,6.5802]
[1745613700186,25.78,151.86,151.78,26.19691959]
[1745613700680,6.5807,151.84,151.82,6.5813]
[1745613700887,25.78,151.86,151.82,6.5813]
[1745613701287,25.78,151.86,151.78,26.19691959]
[1745613701585,25.78,151.86,151.81,26.19691959]
[1745613701885,25.78,151.86,151.85,6.58]
[1745613704685,32.3597,151.86,151.81,26.19691959]
[1745613704885,32.3597,151.86,151.8,26.19691959]
[1745613705287,25.78,151.86,151.84,6.5802]
[1745613706492,25.78,151.86,151.85,6.58]
[1745613710092,25.28,151.89,151.88,6.5787]
[1745613711895,25.28,151.89,151.87,6.5789]
[1745613712097,25.28,151.89,151.86,17.46019379]
[1745613712492,25.28,151.89,151.88,6.5787]
[1745613715799,25.28,151.89,151.84,17.46019379]
[1745613716903,25.28,151.89,151.86,17.46019379]
[1745613717099,25.28,151.89,151.88,6.5787]
[1745613717703,25.28,151.92,151.91,6.5772]
[1745613718205,25.28,151.94,151.9,17.46019379]
[1745613718705,25.28,151.94,151.93,6.5761]
[1745613719203,25.28,151.94,151.88,17.46019379]
[1745613719900,25.28,151.94,151.93,6.5765]
[1745613720304,25.28,151.94,151.92,6.5767]
[1745613720504,25.28,151.94,151.88,17.46019379]
[1745613721305,25.28,151.94,151.93,6.5765]
[1745613721808,31.8562,151.94,151.92,6.5768]
[1745613722009,25.28,151.94,151.88,17.46019379]
[1745613722808,31.8563,151.94,151.91,6.5772]
[1745613724312,6.5766,151.93,151.91,6.5772]
[1745613724514,6.5766,151.93,151.9,6.5777]
[1745613724712,25.28,151.94,151.9,6.5777]
[1745613724912,25.28,151.94,151.88,17.46019379]
[1745613725213,6.5768,151.93,151.88,17.46019379]
[1745613726213,6.577,151.92,151.88,17.46019379]
[1745613726814,6.577,151.92,151.9,6.5776]
[1745613727011,6.5776,151.91,151.86,17.46019379]
[1745613727413,25.28,151.9,151.88,6.5784]
[1745613727612,25.28,151.9,151.86,17.46019379]
[1745613727814,31.8579,151.9,151.87,6.5789]
[1745613728015,25.28,151.9,151.86,17.46019379]
[1745613728517,25.28,151.9,151.88,6.5785]
[1745613728712,25.28,151.9,151.86,17.46019379]
[1745613728916,25.28,151.9,151.88,17.46019379]
[1745613729314,25.28,151.9,151.88,17.45072938]
[1745613730020,25.28,151.9,151.89,6.5783]
[1745613730413,25.28,151.93,151.88,17.45072938]
[1745613730712,25.28,151.93,151.92,6.5768]
[1745613733417,29.159,151.96,151.95,6.5757]
[1745613733720,25.28,151.96,151.95,6.5757]
[1745613734722,19.74,152.1,151.94,17.44976106]
[1745613734924,50.73076106,152.04,151.94,17.44976106]
[1745613735121,54.78976106,152.04,151.94,17.44976106]
[1745613735320,54.78976106,152.04,151.98,6.5741]
[1745613735620,17.44976106,152.02,151.92,42.72976106]
[1745613735824,17.44976106,152.02,151.95,6.5753]
[1745613736024,17.44976106,152.0,151.9,21.29566106]
[1745613736219,25.28,151.99,151.95,6.5756]
[1745613736726,25.28,151.99,151.92,17.44976106]
[1745613736924,25.28,151.99,151.97,6.5747]
[1745613737727,25.28,151.99,151.96,6.5751]
[1745613738929,25.28,151.99,151.94,17.44976106]
[1745613739117,24.86,152.02,151.96,17.44976106]
[1745613739321,6.5734,152.01,151.97,6.5746]
[1745613739529,24.86,152.02,151.94,17.44976106]
[1745613740222,24.86,152.02,151.93,17.44976106]
[1745613741025,6.5751,151.97,151.93,6.5762]
[1745613741224,6.5751,151.97,151.91,17.44976106]
[1745613741526,6.5751,151.97,151.93,6.5762]
[1745613741725,6.5751,151.97,151.91,17.44976106]
[1745613741927,24.86,151.98,151.91,17.44976106]
[1745613742225,24.86,151.98,151.95,6.5754]
[1745613743129,24.86,151.98,151.93,17.44976106]
[1745613743830,24.86,151.98,151.95,17.44976106]
[1745613744324,24.86,151.98,151.97,6.5748]
[1745613744525,29.50976106,152.04,151.95,17.44976106]
[1745613744526,24.86,152.01,151.95,17.44976106]
[1745613744829,24.86,152.01,151.99,6.5738]
[1745613745229,24.86,152.01,151.95,17.44976106]
[1745613745730,24.86,152.01,152.0,6.5735]
[1745613747733,473.74,152.07,151.99,17.44976106]
[1745613747926,24.86,152.06,151.99,17.44976106]
[1745613748733,17.44976106,152.05,151.95,17.44976106]
[1745613748933,24.86,152.06,151.97,17.44976106]
[1745613749433,24.86,152.06,152.02,6.5724]
[1745613749634,24.86,152.06,151.97,17.44976106]
[1745613749829,6.572,152.04,152.01,6.5728]
[1745613750334,17.44976106,152.05,151.97,17.44976106]
[1745613750535,17.44976106,152.05,151.95,17.44976106]
[1745613751035,6.573,152.02,152.0,6.5735]
[1745613751333,31.433,152.02,152.0,6.5735]
[1745613751934,31.433,152.02,151.99,6.5737]
[1745613752136,24.86,152.02,151.99,6.5737]
[1745613752634,31.4328,152.02,151.99,6.5737]
[1745613752834,24.86,152.02,151.99,6.5737]
[1745613753138,31.4328,152.02,151.99,6.5737]
[1745613753532,24.86,152.02,151.97,6.5745]
[1745613753736,10.72779443,152.01,151.97,17.30229443]
[1745613754042,10.72779443,152.01,151.96,17.30269443]
[1745613754538,10.72779443,152.01,151.96,10.72779443]
[1745613754733,10.72779443,151.99,151.94,10.72779443]
[1745613754935,24.86,151.98,151.94,10.72779443]
[1745613755137,31.4345,151.98,151.95,6.5754]
[1745613755439,31.4345,151.98,151.94,10.72779443]
[1745613755835,6.5749,151.97,151.94,10.72779443]
[1745613756540,6.5749,151.97,151.94,17.30359443]
[1745613757236,6.5749,151.97,151.95,6.5756]
[1745613757437,10.72779443,151.97,151.92,10.72779443]
[1745613757942,6.5756,151.96,151.93,6.5763]
[1745613758640,35.58779443,151.98,151.92,10.72779443]
[1745613759240,35.58779443,151.98,151.87,13.158]
[1745613759241,24.86,151.98,151.96,10.72779443]
[1745613759440,24.86,152.0,151.96,10.72779443]
[1745613760339,24.86,152.0,151.98,6.5739]
[1745613760539,24.86,152.0,151.96,10.72779443]
[1745613761235,6.5732,152.01,151.96,10.72779443]
[1745613761441,24.86,152.02,152.0,10.72779443]
[1745613761840,24.86,152.02,152.01,6.5731]
[1745613762641,473.74,152.07,152.0,10.72779443]
[1745613762841,24.86,152.05,152.03,10.72779443]
[1745613763335,24.86,152.05,152.03,10.72137611]
[1745613763539,24.86,152.05,152.0,17.42218328]
[1745613764041,24.86,152.05,152.04,6.5718]
[1745613764541,473.74,152.07,152.02,17.42218328]
[1745613764737,24.86,152.08,152.02,17.42218328]
[1745613766039,24.86,152.08,152.02,42.28218328]
[1745613766241,24.86,152.08,152.05,6.5711]
[1745613766743,24.86,152.08,152.02,42.28218328]
[1745613767042,6.5707,152.07,152.03,6.572]
[1745613767642,24.86,152.08,152.04,6.5716]
[1745613767842,24.86,152.08,152.02,17.42218328]
[1745613768535,24.86,152.08,152.0,17.42218328]
[1745613768734,6.5706,152.07,152.03,6.5722]
[1745613768934,6.5706,152.07,151.99,24.86]
[1745613768935,24.84,152.07,152.02,17.42218328]
[1745613769133,24.84,152.07,152.04,6.5715]
[1745613769641,24.84,152.07,152.02,17.42218328]
[1745613770245,31.4105,152.07,152.04,6.5715]
[1745613770747,24.84,152.07,152.02,17.42218328]
[1745613771545,24.84,152.07,152.04,6.5715]
[1745613772346,24.84,152.07,152.05,6.5713]
[1745613772543,6.5698,152.09,152.02,17.42218328]
[1745613772845,31.1498,152.09,152.04,17.42218328]
[1745613773045,31.1498,152.09,152.06,6.5709]
[1745613773241,31.1498,152.09,152.04,17.42218328]
[1745613773640,31.1498,152.09,152.06,6.5709]
[1745613774943,24.58,152.09,152.08,6.57]
[1745613775149,24.58,152.09,152.04,17.42218328]
[1745613776142,24.58,152.09,152.08,6.57]
[1745613777545,14.6136,152.12,152.06,17.42218328]
[1745613777753,35.053,152.12,152.09,6.5694]
[1745613778048,28.4845,152.12,152.06,17.42218328]
[1745613778243,28.4845,152.12,152.1,6.5691]
[1745613779952,28.4845,152.12,152.09,6.5694]
[1745613780252,24.58,152.12,152.09,6.5694]
[1745613780451,31.1484,152.12,152.09,6.5694]
[1745613780751,24.58,152.12,152.1,6.5691]
[1745613782151,31.1483,152.12,152.1,6.5691]
[1745613782651,473.28,152.21,152.1,17.42218328]
[1745613782951,32.4898,152.2,152.13,17.42218328]
[1745613783152,32.4898,152.2,152.15,6.5668]
[1745613783550,32.4898,152.2,152.14,6.5673]
[1745613783951,32.4898,152.2,152.11,17.42218328]
[1745613784151,32.4898,152.2,152.13,17.42218328]
[1745613784353,473.28,152.21,152.13,17.42218328]
[1745613784647,24.58,152.2,152.17,17.42218328]
[1745613784853,8.0176,152.24,152.17,17.42218328]
[1745613785050,24.58,152.23,152.17,17.42218328]
[1745613785251,24.58,152.23,152.18,17.38159026]
[1745613785451,0.32588,152.2,152.18,17.38159026]
[1745613785752,24.58,152.25,152.18,17.38159026]
[1745613785951,24.58,152.25,152.21,23.94579026]
[1745613786151,24.58,152.25,152.21,17.38159026]
[1745613786345,6.5629,152.25,152.22,10.69356489]
[1745613786847,10.69356489,152.23,152.11,473.2]
[1745613787052,493.02,152.28,152.11,10.69356489]
[1745613787053,10.69356489,152.16,152.11,10.69356489]
[1745613787456,24.58,152.17,152.09,3.8768]
[1745613787457,10.69356489,152.13,152.09,10.69356489]
[1745613787753,35.27356489,152.13,152.08,10.69356489]
[1745613788155,10.69356489,152.11,152.06,10.69356489]
[1745613789450,10.69356489,152.09,152.05,10.69356489]
[1745613789657,35.27356489,152.09,152.03,10.69356489]
[1745613790054,6.5708,152.07,152.03,10.69356489]
[1745613790253,6.5708,152.07,152.01,3.9723]
[1745613790453,6.5708,152.07,152.03,10.69356489]
[1745613791357,6.5708,152.07,152.03,10.72051686]
[1745613791657,6.5708,152.07,152.03,17.29271686]
[1745613791956,6.5702,152.08,152.04,10.72051686]
[1745613792156,35.30051686,152.09,152.04,10.72051686]
[1745613792451,24.58,152.09,152.02,17.41911562]
[1745613792647,6.5708,152.07,152.02,17.41911562]
[1745613792851,24.58,152.09,152.02,23.99131562]
[1745613793156,6.5705,152.07,152.02,17.41911562]
[1745613793555,6.5705,152.07,152.03,6.572]
[1745613794155,6.5705,152.07,152.04,6.5716]
[1745613795257,6.5701,152.08,152.05,6.5713]
[1745613795457,6.5701,152.08,152.02,17.41911562]
[1745613795658,24.58,152.09,152.02,17.41911562]
[1745613796658,6.5705,152.07,152.04,6.5715]
[1745613798959,32.2472,152.12,152.06,17.41911562]
[1745613799666,49.66631562,152.12,152.03,24.58]
[1745613799958,49.66631562,152.12,152.02,17.41911562]
[1745613800252,6.5703,152.08,152.04,6.5716]
[1745613800458,24.44,152.08,152.02,17.41911562]
[1745613800658,6.5707,152.07,152.02,17.41911562]
[1745613801158,6.5711,152.06,152.0,24.44]
[1745613801358,41.85911562,152.08,151.99,17.41911562]
[1745613802961,6.5724,152.03,151.98,24.44]
[1745613803260,24.44,152.04,151.98,24.44]
[1745613804159,24.44,152.04,152.01,17.41911562]
[1745613804454,24.44,152.04,152.02,6.5726]